fUST/lending_fUST_20250606
["ID","MTS","AMOUNT","RATE_DAILY","PERIOD"]
[364735562,1749222640064,-706.6,0.00019178,2]
[364735563,1749222640074,-440.0,0.00019178,2]
[364735564,1749222640084,-440.0,0.00019178,2]
[364735565,1749222640094,-440.0,0.00019178,2]
[364735566,1749222640105,-440.0,0.00019178,2]
[364735567,1749222640114,-440.0,0.00019178,2]
[364735568,1749222640124,-488.49,0.00019178,2]
[364735570,1749222640134,-430.0,0.00019178,2]
[364735572,1749222640143,-440.0,0.00019178,2]
[364735573,1749222640152,-440.0,0.00019178,2]
[364735575,1749222640162,-440.0,0.00019178,2]
[364735577,1749222640174,-440.0,0.00019178,2]
[364735579,1749222640184,-382.34943382,0.00019178,2]
[364735580,1749222640193,-440.0,0.00019178,2]
[364735583,1749222640202,-440.0,0.00019178,2]
[364735584,1749222640213,-440.0,0.00019178,2]
[364735586,1749222640223,-525.15010102,0.00019178,2]
[364735588,1749222640235,-440.0,0.00019178,2]
[364735589,1749222640244,-440.0,0.00019178,2]
[364735590,1749222640255,-269.53432683,0.00019178,2]
[364735591,1749222640264,-440.0,0.00019178,2]
[364735593,1749222640274,-500.0,0.00019178,2]
[364735595,1749222640283,-440.0,0.00019178,2]
[364735597,1749222640292,-440.0,0.00019178,2]
[364735599,1749222640302,-440.0,0.00019178,2]
[364735601,1749222640311,-440.0,0.00019178,2]
[364735603,1749222640321,-440.0,0.00019178,2]
[364735605,1749222640330,-440.0,0.00019178,2]
[364735607,1749222640340,-440.0,0.00019178,2]
[364735609,1749222640349,-440.0,0.00019178,2]
[364735611,1749222640359,-430.0,0.00019178,2]
[364735613,1749222640369,-440.0,0.00019178,2]
[364735615,1749222640379,-355.15836169,0.00019178,2]
[364735617,1749222640388,-440.0,0.00019178,2]
[364735619,1749222640397,-440.0,0.00019178,2]
[364735621,1749222640407,-440.0,0.00019178,2]
[364735623,1749222640416,-440.0,0.00019178,2]
[364735625,1749222640426,-440.0,0.00019178,2]
[364735627,1749222640436,-430.0,0.00019178,2]
[364735628,1749222640445,-440.0,0.00019178,2]
[364735629,1749222640454,-440.0,0.00019178,2]
[364735630,1749222640464,-440.0,0.00019178,2]
[364735631,1749222640476,-440.0,0.00019178,2]
[364735632,1749222640485,-440.0,0.00019178,2]
[364735633,1749222640495,-607.16,0.00019178,2]
[364735635,1749222640505,-440.0,0.00019178,2]
[364735637,1749222640515,-440.0,0.00019178,2]
[364735639,1749222640525,-440.0,0.00019178,2]
[364735641,1749222640535,-440.0,0.00019178,2]
[364735643,1749222640545,-440.0,0.00019178,2]
[364735645,1749222640556,-440.0,0.00019178,2]
[364735647,1749222640570,-440.0,0.00019178,2]
[364735649,1749222640583,-440.0,0.00019178,2]
[364735651,1749222640596,-440.0,0.00019178,2]
[364735653,1749222640605,-312.66794337,0.00019178,2]
[364735655,1749222640615,-440.0,0.00019178,2]
[364735657,1749222640624,-400.0,0.00019178,2]
[364735659,1749222640635,-440.0,0.00019178,2]
[364735661,1749222640644,-440.0,0.00019178,2]
[364735663,1749222640653,-548.80137931,0.00019178,2]
[364735665,1749222640663,-255.46489381,0.00019178,2]
[364735667,1749222640673,-420.0,0.00019178,2]
[364735669,1749222640682,-411.73762338,0.00019178,2]
[364735671,1749222640692,-319.04150137,0.00019178,2]
[364735673,1749222640701,-430.0,0.00019178,2]
[364735675,1749222640711,-440.0,0.00019178,2]
[364735677,1749222640720,-440.0,0.00019178,2]
[364735679,1749222640730,-440.0,0.00019178,2]
[364735681,1749222640740,-606.17,0.00019178,2]
[364735683,1749222640749,-440.0,0.00019178,2]
[364735685,1749222640759,-496.76,0.00019178,2]
[364735687,1749222640769,-440.0,0.00019178,2]
[364735689,1749222640785,-431.70424533,0.00019178,2]
[364735691,1749222640798,-440.0,0.00019178,2]
[364735693,1749222640808,-440.0,0.00019178,2]
[364735695,1749222640819,-440.0,0.00019178,2]
[364735697,1749222640829,-440.0,0.00019178,2]
[364735699,1749222640838,-440.0,0.00019178,2]
[364735701,1749222640847,-440.0,0.00019178,2]
[364735703,1749222640857,-440.0,0.00019178,2]
[364735705,1749222640867,-440.0,0.00019178,2]
[364735708,1749222640877,-430.0,0.00019178,2]
[364735710,1749222640886,-440.0,0.00019178,2]
[364735712,1749222640895,-440.0,0.00019178,2]
[364735714,1749222640905,-440.0,0.00019178,2]
[364735716,1749222640914,-440.0,0.00019178,2]
[364735718,1749222640924,-440.0,0.00019178,2]
[364735720,1749222640933,-440.0,0.00019178,2]
[364735722,1749222640942,-1663.25,0.00019178,2]
[364735724,1749222640952,-440.0,0.00019178,2]
[364735726,1749222640961,-440.0,0.00019178,2]
[364735728,1749222640971,-203.21947115,0.00019178,2]
[364735730,1749222640982,-440.0,0.00019178,2]
[364735732,1749222640992,-229.09772759,0.00019178,2]
[364735734,1749222641002,-350.13444175,0.00019178,2]
[364735736,1749222641012,-440.0,0.00019178,2]
[364735738,1749222641022,-440.0,0.00019178,2]
[364735740,1749222641031,-401.99410861,0.00019178,2]
[364735742,1749222641041,-440.0,0.00019178,2]
[364735744,1749222641050,-1652.77,0.00019178,2]
[364735746,1749222641060,-440.0,0.00019178,2]
[364735748,1749222641069,-301.54794634,0.00019178,2]
[364735750,1749222641079,-440.0,0.00019178,2]
[364735752,1749222641089,-4012.69,0.00019178,2]
[364735754,1749222641098,-430.0,0.00019178,2]
[364735756,1749222641108,-440.0,0.00019178,2]
[364735758,1749222641118,-440.0,0.00019178,2]
[364735759,1749222641128,-440.0,0.00019178,2]
[364735761,1749222641137,-440.0,0.00019178,2]
[364735763,1749222641147,-440.0,0.00019178,2]
[364735764,1749222641156,-801.86,0.00019178,2]
[364735766,1749222641166,-393.9916574,0.00019178,2]
[364735768,1749222641179,-3581.25,0.00019178,2]
[364735770,1749222641189,-1321.47,0.00019178,2]
[364735771,1749222641198,-440.0,0.00019178,2]
[364735772,1749222641208,-440.0,0.00019178,2]
[364735773,1749222641218,-440.0,0.00019178,2]
[364735774,1749222641229,-430.0,0.00019178,2]
[364735775,1749222641239,-440.0,0.00019178,2]
[364735776,1749222641249,-440.0,0.00019178,2]
[364735777,1749222641261,-440.0,0.00019178,2]
[364735778,1749222641271,-400.0,0.00019178,2]
[364735779,1749222641280,-263.71492334,0.00019178,2]
[364735780,1749222641290,-454.86,0.00019178,2]
[364735781,1749222641299,-1376.47,0.00019178,2]
[364735782,1749222641309,-953.58,0.00019178,2]
[364735783,1749222641319,-183.35469407,0.00019178,2]
[364735784,1749222641329,-440.0,0.00019178,2]
[364735785,1749222641339,-440.0,0.00019178,2]
[364735786,1749222641348,-440.0,0.00019178,2]
[364735787,1749222641359,-632.87,0.00019178,2]
[364735788,1749222641369,-340.0,0.00019178,2]
[364735789,1749222641378,-1402.35,0.00019178,2]
[364735790,1749222641388,-440.0,0.00019178,2]
[364735791,1749222641399,-430.0,0.00019178,2]
[364735792,1749222641409,-440.0,0.00019178,2]
[364735793,1749222641418,-1199.74,0.00019178,2]
[364735794,1749222641428,-187.79063279,0.00019178,2]
[364735795,1749222641438,-440.0,0.00019178,2]
[364735796,1749222641449,-440.0,0.00019178,2]
[364735797,1749222641469,-350.0,0.00019178,2]
[364735798,1749222641481,-440.0,0.00019178,2]
[364735799,1749222641491,-440.0,0.00019178,2]
[364735800,1749222641500,-440.0,0.00019178,2]
[364735801,1749222641510,-440.0,0.00019178,2]
[364735803,1749222641520,-440.0,0.00019178,2]
[364735804,1749222641530,-440.0,0.00019178,2]
[364735805,1749222641540,-440.0,0.00019178,2]
[364735806,1749222641549,-440.0,0.00019178,2]
[364735807,1749222641559,-439.86875441,0.00019178,2]
[364735808,1749222641569,-440.0,0.00019178,2]
[364735809,1749222641579,-440.0,0.00019178,2]
[364735810,1749222641589,-440.0,0.00019178,2]
[364735811,1749222641599,-440.0,0.00019178,2]
[364735812,1749222641609,-919.24,0.00019178,2]
[364735813,1749222641619,-631.26,0.00019178,2]
[364735814,1749222641629,-440.0,0.00019178,2]
[364735815,1749222641639,-440.0,0.00019178,2]
[364735816,1749222641648,-440.0,0.00019178,2]
[364735817,1749222641658,-2393.6,0.00019178,2]
[364735818,1749222641667,-440.0,0.00019178,2]
[364735819,1749222641676,-2937.68,0.00019178,2]
[364735820,1749222641686,-440.0,0.00019178,2]
[364735821,1749222641696,-2567.02,0.00019178,2]
[364735822,1749222641706,-440.0,0.00019178,2]
[364735823,1749222641716,-440.0,0.00019178,2]
[364735824,1749222641726,-420.0,0.00019178,2]
[364735825,1749222641736,-427.89493767,0.00019178,2]
[364735826,1749222641747,-3822.67,0.00019178,2]
[364735827,1749222641756,-440.0,0.00019178,2]
[364735828,1749222641766,-440.0,0.00019178,2]
[364735829,1749222641776,-440.0,0.00019178,2]
[364735830,1749222641786,-440.0,0.00019178,2]
[364735831,1749222641796,-440.0,0.00019178,2]
[364735832,1749222641805,-3069.86,0.00019178,2]
[364735833,1749222641815,-440.0,0.00019178,2]
[364735834,1749222641826,-440.0,0.00019178,2]
[364735835,1749222641835,-430.0,0.00019178,2]
[364735836,1749222641845,-500.0,0.00019178,2]
[364735837,1749222641854,-500.0,0.00019178,2]
[364735838,1749222641864,-500.0,0.00019178,2]
[364735839,1749222641874,-582.06435634,0.00019178,2]
[364735840,1749222641883,-440.0,0.00019178,2]
[364735841,1749222641893,-500.0,0.00019178,2]
[364735842,1749222641902,-500.0,0.00019178,2]
[364735843,1749222641912,-500.0,0.00019178,2]
[364735844,1749222641922,-500.0,0.00019178,2]
[364735845,1749222641932,-500.0,0.00019178,2]
[364735846,1749222641942,-500.0,0.00019178,2]
[364735847,1749222641952,-500.0,0.00019178,2]
[364735848,1749222641961,-3071.25,0.00019178,2]
[364735849,1749222641970,-358.907453,0.00019178,2]
[364735850,1749222641981,-430.0,0.00019178,2]
[364735851,1749222641991,-440.0,0.00019178,2]
[364735852,1749222642001,-327.61351071,0.00019178,2]
[364735853,1749222642010,-440.0,0.00019178,2]
[364735854,1749222642019,-296.61647403,0.00019178,2]
[364735855,1749222642028,-440.0,0.00019178,2]
[364735856,1749222642038,-366.17748023,0.00019178,2]
[364735857,1749222642048,-440.0,0.00019178,2]
[364735858,1749222642057,-440.0,0.00019178,2]
[364735859,1749222642066,-440.0,0.00019178,2]
[364735860,1749222642076,-430.0,0.00019178,2]
[364735861,1749222642085,-440.0,0.00019178,2]
[364735862,1749222642095,-430.0,0.00019178,2]
[364735863,1749222642104,-431.15458737,0.00019178,2]
[364735864,1749222642114,-681.38,0.00019178,2]
[364735865,1749222642123,-440.0,0.00019178,2]
[364735866,1749222642133,-440.0,0.00019178,2]
[364735867,1749222642143,-440.0,0.00019178,2]
[364735868,1749222642152,-430.0,0.00019178,2]
[364735869,1749222642161,-181.185908,0.00019178,2]
[364735870,1749222642173,-50000.0,0.00019178,2]
[364735871,1749222642183,-500.0,0.00019451,2]
[364735872,1749222642194,-528.49057316,0.00019451,2]
[364735873,1749222642205,-434.53378172,0.00019452,2]
[364735874,1749222642326,-440.0,0.00019452,2]
[364735875,1749222642340,-370.0,0.00019452,2]
[364735876,1749222642350,-486.62531999,0.00019452,2]
[364735877,1749222642360,-440.0,0.00019452,2]
[364735878,1749222642370,-440.0,0.00019452,2]
[364735879,1749222642380,-233.20040794,0.00019452,2]
[364735880,1749222642389,-440.0,0.00019452,2]
[364735881,1749222642399,-420.0,0.00019452,2]
[364735882,1749222642409,-440.0,0.00019452,2]
[364735883,1749222642419,-440.0,0.00019452,2]
[364735884,1749222642429,-440.0,0.00019452,2]
[364735885,1749222642438,-430.0,0.00019452,2]
[364735886,1749222642448,-420.0,0.00019452,2]
[364735887,1749222642457,-440.0,0.00019452,2]
[364735888,1749222642467,-440.0,0.00019452,2]
[364735889,1749222642476,-430.0,0.00019452,2]
[364735890,1749222642486,-440.0,0.00019452,2]
[364735891,1749222642495,-440.0,0.00019452,2]
[364735892,1749222642505,-440.0,0.00019452,2]
[364735893,1749222642514,-440.0,0.00019452,2]
[364735894,1749222642523,-440.0,0.00019452,2]
[364735895,1749222642533,-398.40941849,0.00019452,2]
[364735896,1749222642542,-440.0,0.00019452,2]
[364735897,1749222642552,-420.0,0.00019452,2]
[364735898,1749222642562,-440.0,0.00019452,2]
[364735899,1749222642572,-440.0,0.00019452,2]
[364735900,1749222642582,-440.0,0.00019452,2]
[364735901,1749222642591,-440.0,0.00019452,2]
[364735902,1749222642602,-440.0,0.00019452,2]
[364735903,1749222642612,-440.0,0.00019452,2]
[364735904,1749222642621,-440.0,0.00019452,2]
[364735905,1749222642630,-440.0,0.00019452,2]
[364735906,1749222642640,-440.0,0.00019452,2]
[364735907,1749222642649,-410.0,0.00019452,2]
[364735908,1749222642659,-440.0,0.00019452,2]
[364735909,1749222642668,-440.0,0.00019452,2]
[364735910,1749222642677,-440.0,0.00019452,2]
[364735911,1749222642687,-420.0,0.00019452,2]
[364735912,1749222642696,-440.0,0.00019452,2]
[364735913,1749222642706,-440.0,0.00019452,2]
[364735914,1749222642716,-440.0,0.00019452,2]
[364735915,1749222642726,-706.6,0.00019452,2]
[364735916,1749222642735,-440.0,0.00019452,2]
[364735917,1749222642746,-440.0,0.00019452,2]
[364735918,1749222642756,-488.49,0.00019452,2]
[364735919,1749222642766,-440.0,0.00019452,2]
[364735921,1749222642776,-440.0,0.00019452,2]
[364735923,1749222642786,-440.0,0.00019452,2]
[364735924,1749222642797,-440.0,0.00019452,2]
[364735925,1749222642806,-440.0,0.00019452,2]
[364735927,1749222642816,-440.0,0.00019452,2]
[364735928,1749222642826,-401.98555472,0.00019452,2]
[364735930,1749222642836,-440.0,0.00019452,2]
[364735931,1749222642845,-440.0,0.00019452,2]
[364735932,1749222642855,-440.0,0.00019452,2]
[364735933,1749222642865,-440.0,0.00019452,2]
[364735934,1749222642875,-440.0,0.00019452,2]
[364735935,1749222642885,-238.51517768,0.00019452,2]
[364735937,1749222642895,-440.0,0.00019452,2]
[364735938,1749222642905,-420.0,0.00019452,2]
[364735939,1749222642915,-440.0,0.00019452,2]
[364735940,1749222642925,-440.0,0.00019452,2]
[364735941,1749222642934,-440.0,0.00019452,2]
[364735942,1749222642944,-440.0,0.00019452,2]
[364735943,1749222642954,-440.0,0.00019452,2]
[364735944,1749222642963,-533.84658708,0.00019452,2]
[364735945,1749222642973,-440.0,0.00019452,2]
[364735946,1749222642984,-430.0,0.00019452,2]
[364735947,1749222642994,-607.16,0.00019452,2]
[364735948,1749222643005,-440.0,0.00019452,2]
[364735949,1749222643015,-440.0,0.00019452,2]
[364735950,1749222643025,-410.0,0.00019452,2]
[364735951,1749222643035,-440.0,0.00019452,2]
[364735952,1749222643046,-440.0,0.00019452,2]
[364735953,1749222643055,-440.0,0.00019452,2]
[364735954,1749222643065,-469.841219,0.00019452,2]
[364735955,1749222643075,-606.17,0.00019452,2]
[364735956,1749222643086,-440.0,0.00019452,2]
[364735957,1749222643096,-440.0,0.00019452,2]
[364735958,1749222643106,-496.76,0.00019452,2]
[364735959,1749222643116,-212.76118036,0.00019452,2]
[364735960,1749222643126,-440.0,0.00019452,2]
[364735961,1749222643136,-440.0,0.00019452,2]
[364735962,1749222643146,-440.0,0.00019452,2]
[364735963,1749222643156,-440.0,0.00019452,2]
[364735964,1749222643166,-440.0,0.00019452,2]
[364735965,1749222643179,-430.0,0.00019452,2]
[364735966,1749222643189,-440.0,0.00019452,2]
[364735967,1749222643198,-1663.25,0.00019452,2]
[364735968,1749222643207,-440.0,0.00019452,2]
[364735969,1749222643218,-430.0,0.00019452,2]
[364735970,1749222643228,-440.0,0.00019452,2]
[364735971,1749222643238,-1652.77,0.00019452,2]
[364735972,1749222643251,-440.0,0.00019452,2]
[364735973,1749222643261,-4012.69,0.00019452,2]
[364735974,1749222643270,-440.0,0.00019452,2]
[364735975,1749222643280,-440.0,0.00019452,2]
[364735976,1749222643289,-440.0,0.00019452,2]
[364735977,1749222643299,-801.86,0.00019452,2]
[364735978,1749222643309,-3581.25,0.00019452,2]
[364735979,1749222643318,-1321.47,0.00019452,2]
[364735980,1749222643327,-420.0,0.00019452,2]
[364735981,1749222643337,-440.0,0.00019452,2]
[364735982,1749222643347,-440.0,0.00019452,2]
[364735983,1749222643356,-440.0,0.00019452,2]
[364735984,1749222643366,-440.0,0.00019452,2]
[364735985,1749222643375,-454.86,0.00019452,2]
[364735986,1749222643385,-1376.47,0.00019452,2]
[364735987,1749222643396,-953.58,0.00019452,2]
[364735989,1749222643406,-440.0,0.00019452,2]
[364735991,1749222643415,-440.0,0.00019452,2]
[364735993,1749222643425,-440.0,0.00019452,2]
[364735994,1749222643435,-632.87,0.00019452,2]
[364735995,1749222643444,-1402.35,0.00019452,2]
[364735996,1749222643454,-440.0,0.00019452,2]
[364735997,1749222643464,-440.0,0.00019452,2]
[364735998,1749222643474,-1199.74,0.00019452,2]
[364735999,1749222643485,-440.0,0.00019452,2]
[364736000,1749222643495,-440.0,0.00019452,2]
[364736001,1749222643505,-440.0,0.00019452,2]
[364736002,1749222643515,-440.0,0.00019452,2]
[364736003,1749222643524,-440.0,0.00019452,2]
[364736004,1749222643534,-440.0,0.00019452,2]
[364736005,1749222643544,-440.0,0.00019452,2]
[364736006,1749222643553,-440.0,0.00019452,2]
[364736007,1749222643563,-440.0,0.00019452,2]
[364736008,1749222643573,-440.0,0.00019452,2]
[364736009,1749222643583,-430.0,0.00019452,2]
[364736010,1749222643592,-440.0,0.00019452,2]
[364736011,1749222643602,-440.0,0.00019452,2]
[364736012,1749222643611,-440.0,0.00019452,2]
[364736013,1749222643621,-919.24,0.00019452,2]
[364736014,1749222643631,-631.26,0.00019452,2]
[364736015,1749222643640,-440.0,0.00019452,2]
[364736016,1749222643650,-440.0,0.00019452,2]
[364736017,1749222643660,-440.0,0.00019452,2]
[364736018,1749222643670,-2393.6,0.00019452,2]
[364736019,1749222643679,-440.0,0.00019452,2]
[364736020,1749222643689,-2937.68,0.00019452,2]
[364736021,1749222643698,-440.0,0.00019452,2]
[364736022,1749222643708,-2567.02,0.00019452,2]
[364736023,1749222643718,-440.0,0.00019452,2]
[364736024,1749222643727,-440.0,0.00019452,2]
[364736025,1749222643738,-3822.67,0.00019452,2]
[364736026,1749222643748,-440.0,0.00019452,2]
[364736027,1749222643758,-529.06473254,0.00019452,2]
[364736028,1749222643767,-3069.86,0.00019452,2]
[364736029,1749222643777,-440.0,0.00019452,2]
[364736030,1749222643787,-350.0,0.00019452,2]
[364736031,1749222643796,-440.0,0.00019452,2]
[364736032,1749222643806,-3071.25,0.00019452,2]
[364736033,1749222643816,-440.0,0.00019452,2]
[364736034,1749222643826,-410.0,0.00019452,2]
[364736035,1749222643836,-440.0,0.00019452,2]
[364736036,1749222643846,-681.38,0.00019452,2]
[364736037,1749222643856,-440.0,0.00019452,2]
[364736038,1749222643866,-500.0,0.00019681,2]
[364736039,1749222643875,-440.0,0.00019726,2]
[364736040,1749222643885,-440.0,0.00019726,2]
[364736041,1749222643895,-440.0,0.00019726,2]
[364736042,1749222643905,-440.0,0.00019726,2]
[364736043,1749222643914,-440.0,0.00019726,2]
[364736044,1749222643925,-440.0,0.00019726,2]
[364736045,1749222643934,-352.86135184,0.00019726,2]
[364736046,1749222643944,-497.06683138,0.00019726,2]
[364736047,1749222643953,-440.0,0.00019726,2]
[364736048,1749222643963,-463.59725457,0.00019726,2]
[364736049,1749222643972,-440.0,0.00019726,2]
[364736050,1749222643983,-157.98005441,0.00019726,2]
[364736051,1749222643993,-440.0,0.00019726,2]
[364736052,1749222644002,-410.0,0.00019726,2]
[364736053,1749222644012,-430.0,0.00019726,2]
[364736054,1749222644022,-440.0,0.00019726,2]
[364736055,1749222644032,-440.0,0.00019726,2]
[364736056,1749222644042,-410.0,0.00019726,2]
[364736057,1749222644052,-440.0,0.00019726,2]
[364736058,1749222644061,-440.0,0.00019726,2]
[364736059,1749222644071,-706.6,0.00019726,2]
[364736060,1749222644080,-440.0,0.00019726,2]
[364736061,1749222644090,-488.49,0.00019726,2]
[364736062,1749222644099,-440.0,0.00019726,2]
[364736063,1749222644109,-440.0,0.00019726,2]
[364736064,1749222644118,-361.05730704,0.00019726,2]
[364736065,1749222644128,-440.0,0.00019726,2]
[364736066,1749222644137,-430.0,0.00019726,2]
[364736067,1749222644147,-440.0,0.00019726,2]
[364736068,1749222644156,-440.0,0.00019726,2]
[364736069,1749222644166,-410.0,0.00019726,2]
[364736070,1749222644179,-440.0,0.00019726,2]
[364736071,1749222644189,-440.0,0.00019726,2]
[364736072,1749222644198,-173.97937949,0.00019726,2]
[364736073,1749222644208,-440.0,0.00019726,2]
[364736074,1749222644219,-440.0,0.00019726,2]
[364736075,1749222644230,-430.0,0.00019726,2]
[364736076,1749222644240,-607.16,0.00019726,2]
[364736077,1749222644250,-440.0,0.00019726,2]
[364736078,1749222644260,-440.0,0.00019726,2]
[364736079,1749222644270,-440.0,0.00019726,2]
[364736080,1749222644280,-440.0,0.00019726,2]
[364736081,1749222644289,-440.0,0.00019726,2]
[364736082,1749222644299,-606.17,0.00019726,2]
[364736083,1749222644308,-271.45555516,0.00019726,2]
[364736084,1749222644317,-440.0,0.00019726,2]
[364736085,1749222644327,-496.76,0.00019726,2]
[364736086,1749222644337,-440.0,0.00019726,2]
[364736087,1749222644346,-440.0,0.00019726,2]
[364736088,1749222644356,-390.0,0.00019726,2]
[364736089,1749222644365,-440.0,0.00019726,2]
[364736090,1749222644375,-440.0,0.00019726,2]
[364736091,1749222644384,-1663.25,0.00019726,2]
[364736092,1749222644394,-420.18082664,0.00019726,2]
[364736093,1749222644404,-440.0,0.00019726,2]
[364736094,1749222644413,-1652.77,0.00019726,2]
[364736095,1749222644422,-410.0,0.00019726,2]
[364736096,1749222644431,-4012.69,0.00019726,2]
[364736097,1749222644441,-440.0,0.00019726,2]
[364736098,1749222644450,-440.0,0.00019726,2]
[364736099,1749222644460,-420.0,0.00019726,2]
[364736100,1749222644469,-801.86,0.00019726,2]
[364736101,1749222644480,-3581.25,0.00019726,2]
[364736102,1749222644490,-1321.47,0.00019726,2]
[364736103,1749222644499,-206.25,0.00019726,2]
[364736104,1749222644509,-440.0,0.00019726,2]
[364736105,1749222644519,-440.0,0.00019726,2]
[364736106,1749222644528,-454.86,0.00019726,2]
[364736107,1749222644537,-1376.47,0.00019726,2]
[364736108,1749222644547,-953.58,0.00019726,2]
[364736109,1749222644556,-440.0,0.00019726,2]
[364736110,1749222644565,-440.0,0.00019726,2]
[364736111,1749222644575,-440.0,0.00019726,2]
[364736112,1749222644586,-632.87,0.00019726,2]
[364736113,1749222644596,-1402.35,0.00019726,2]
[364736114,1749222644605,-440.0,0.00019726,2]
[364736115,1749222644614,-216.27922572,0.00019726,2]
[364736116,1749222644624,-1199.74,0.00019726,2]
[364736117,1749222644633,-440.0,0.00019726,2]
[364736118,1749222644642,-440.0,0.00019726,2]
[364736119,1749222644653,-440.0,0.00019726,2]
[364736120,1749222644663,-440.0,0.00019726,2]
[364736121,1749222644672,-440.0,0.00019726,2]
[364736122,1749222644681,-440.0,0.00019726,2]
[364736123,1749222644691,-440.0,0.00019726,2]
[364736124,1749222644701,-440.0,0.00019726,2]
[364736125,1749222644710,-440.0,0.00019726,2]
[364736126,1749222644720,-260.0,0.00019726,2]
[364736127,1749222644730,-440.0,0.00019726,2]
[364736128,1749222644767,-440.0,0.00019726,2]
[364736129,1749222644777,-631.26,0.00019726,2]
[364736130,1749222644787,-919.24,0.00019726,2]
[364736131,1749222644797,-440.0,0.00019726,2]
[364736132,1749222644808,-440.0,0.00019726,2]
[364736133,1749222644817,-440.0,0.00019726,2]
[364736134,1749222644827,-2393.6,0.00019726,2]
[364736135,1749222644836,-440.0,0.00019726,2]
[364736136,1749222644845,-2937.68,0.00019726,2]
[364736137,1749222644855,-440.0,0.00019726,2]
[364736138,1749222644864,-2567.02,0.00019726,2]
[364736139,1749222644874,-440.0,0.00019726,2]
[364736140,1749222644884,-440.0,0.00019726,2]
[364736141,1749222644894,-3822.67,0.00019726,2]
[364736142,1749222644903,-440.0,0.00019726,2]
[364736143,1749222644912,-3069.86,0.00019726,2]
[364736144,1749222644921,-379.11841768,0.00019726,2]
[364736145,1749222644931,-440.0,0.00019726,2]
[364736146,1749222644941,-3071.25,0.00019726,2]
[364736147,1749222644950,-440.0,0.00019726,2]
[364736148,1749222644960,-440.0,0.00019726,2]
[364736149,1749222644969,-681.38,0.00019726,2]
[364736150,1749222644979,-440.0,0.00019726,2]
[364736151,1749222644988,-2699.93129698,0.00019727,2]
[364736152,1749222644998,-500.0,0.00019808,2]
[364736153,1749222645007,-281.16332978,0.00019808,2]
[364736154,1749222645016,-500.0,0.00019808,2]
[364736155,1749222645026,-500.0,0.00019808,2]
[364736156,1749222645035,-500.0,0.00019808,2]
[364736157,1749222645044,-500.0,0.00019808,2]
[364736158,1749222645054,-500.0,0.00019808,2]
[364736159,1749222645062,-151.0,0.00019808,2]
[364736160,1749222645072,-500.0,0.00019815,2]
[364736161,1749222645081,-500.0,0.00019835,2]
[364736162,1749222645090,-574.737208,0.00019835,2]
[364736163,1749222645100,-500.83773021,0.00019835,2]
[364736164,1749222645109,-500.0,0.00019835,2]
[364736165,1749222645119,-500.0,0.00019835,2]